bitfinex/quotes_SOLUSD_20250612
["timestamp","ask_amount","ask_price","bid_price","bid_amount"]
[1749746398531,26.0,158.25,158.17,90.0977]
[1749746398823,26.0,158.25,158.23,19.18177836]
[1749746399062,6.31951466,158.24,158.21,19.18177836]
[1749746399431,6.31951466,158.24,158.2,19.18177836]
[1749746399934,6.31951466,158.24,158.21,19.18177836]
[1749746400461,22.11830131,158.24,158.2,19.18177836]
[1749746401153,22.11830131,158.24,158.21,19.18177836]
[1749746401724,22.11830131,158.24,158.2,19.18177836]
[1749746402175,19.18177836,158.21,158.17,88.5]
[1749746402760,19.4661015,158.2,158.13,1.6347]
[1749746402946,19.4661015,158.2,158.15,19.18177836]
[1749746403162,6.3215121,158.19,158.16,19.18177836]
[1749746403353,6.3215121,158.19,158.15,19.18177836]
[1749746403760,22.12529236,158.19,158.15,19.18177836]
[1749746403973,6.3215121,158.19,158.15,19.18177836]
[1749746404744,19.4661015,158.18,158.11,6.6277]
[1749746404948,0.28432314,158.18,158.14,19.18177836]
[1749746405379,6.32231143,158.17,158.14,19.18177836]
[1749746405755,6.32231143,158.17,158.1,115.02]
[1749746405756,19.18177836,158.16,158.1,88.5]
[1749746405957,19.18177836,158.16,158.09,1.5989]
[1749746405958,19.18177836,158.15,158.11,19.18177836]
[1749746406283,19.4661015,158.16,158.12,19.18177836]
[1749746406644,19.4661015,158.16,158.11,19.18177836]
[1749746406874,19.18177836,158.15,158.11,19.18177836]
[1749746407182,64.11575036,158.16,158.11,19.18177836]
[1749746407550,6.32311097,158.15,158.11,19.18177836]
[1749746408484,41.31266675,158.15,158.11,19.18177836]
[1749746408650,41.31266675,158.15,158.1,19.18177836]
[1749746408978,19.18177836,158.13,158.09,19.18177836]
[1749746409569,19.4661015,158.14,158.09,19.18177836]
[1749746410784,6.3239107,158.13,158.12,19.18177836]
[1749746411249,6.32311097,158.15,158.12,19.18177836]
[1749746411447,6.32311097,158.15,158.13,19.18177836]
[1749746412174,6.32311097,158.15,158.12,19.18177836]
[1749746412351,6.32311097,158.15,158.11,19.18177836]
[1749746414050,6.32311097,158.15,158.12,19.18177836]
[1749746414251,6.32311097,158.15,158.08,107.68177836]
[1749746414453,6.32311097,158.15,158.13,19.18177836]
[1749746416676,26.0,158.16,158.08,134.20177836]
[1749746416677,32.32281501,158.16,158.14,19.18177836]
[1749746417563,26.0,158.16,158.1,1.6152]
[1749746417867,32.32277235,158.16,158.14,19.18177836]
[1749746418657,32.32277235,158.16,158.1,90.1152]
[1749746418964,32.32277235,158.16,158.14,19.18177836]
[1749746419158,32.32277235,158.16,158.1,90.1152]
[1749746419396,0.28432314,158.14,158.1,107.68177836]
[1749746419557,6.3239107,158.13,158.1,88.5]
[1749746419881,6.3239107,158.13,158.1,107.68177836]
[1749746420372,6.3239107,158.13,158.11,19.18177836]
[1749746420566,41.80677794,158.16,158.12,19.18177836]
[1749746420770,6.32311097,158.15,158.13,19.18177836]
[1749746420960,6.32071297,158.21,158.14,19.18177836]
[1749746421164,6.32071297,158.21,158.1,26.52]
[1749746421165,6.32071297,158.21,158.12,6.5718]
[1749746421369,6.32071297,158.21,158.2,19.18177836]
[1749746421579,32.32031348,158.22,158.19,19.18177836]
[1749746423287,32.32031348,158.22,158.14,115.02]
[1749746423588,32.32031348,158.22,158.12,153.5718]
[1749746423589,0.28432314,158.18,158.12,95.0718]
[1749746423768,19.4661015,158.18,158.13,19.18177836]
[1749746424180,19.18177836,158.17,158.13,19.18177836]
[1749746424660,6.32271117,158.16,158.13,19.18177836]
[1749746425096,6.32271117,158.16,158.12,19.18177836]
[1749746425586,41.31126747,158.16,158.12,19.18177836]
[1749746425962,41.31126747,158.16,158.11,19.18177836]
[1749746426387,41.31126747,158.16,158.12,19.18177836]
[1749746428985,22.12948911,158.16,158.12,19.18177836]
[1749746429163,6.32271117,158.16,158.12,19.18177836]
[1749746429364,6.32271117,158.16,158.13,19.18177836]
[1749746429584,6.32271117,158.16,158.14,19.18177836]
[1749746430064,18.64964886,158.2,158.15,19.18177836]
[1749746430266,6.3215121,158.19,158.17,19.18177836]
[1749746431366,21.90394986,158.21,158.18,19.18177836]
[1749746431367,6.32127554,158.2,158.18,19.18177836]
[1749746431566,12.28083607,158.21,158.19,19.18177836]
[1749746431763,6.32083607,158.21,158.19,19.18177836]
[1749746433072,34.98146392,158.24,158.2,19.18177836]
[1749746433273,6.31951466,158.24,158.2,19.18177836]
[1749746433483,32.31951466,158.24,158.2,19.18177836]
[1749746433880,2.36974297,158.23,158.2,19.18177836]
[1749746434187,19.18177836,158.23,158.18,19.18177836]
[1749746434766,19.18177836,158.23,158.19,19.18177836]
[1749746435187,6.32031348,158.22,158.19,19.18177836]
[1749746436896,6.32031348,158.22,158.2,19.18177836]
[1749746437397,6.31991404,158.23,158.2,19.18177836]
[1749746438787,6.31991404,158.23,158.16,107.68177836]
[1749746438991,6.31967235,158.24,158.22,19.18177836]
[1749746439297,32.31871603,158.26,158.23,19.18177836]
[1749746439466,32.31871603,158.26,158.22,107.68177836]
[1749746440602,32.31871603,158.26,158.23,19.18177836]
[1749746441198,6.3183168,158.27,158.24,19.18177836]
[1749746441392,6.3183168,158.27,158.23,19.18177836]
[1749746441883,6.3183168,158.27,158.24,19.18177836]
[1749746443282,6.3183168,158.27,158.25,19.18177836]
[1749746443691,6.317983,158.28,158.26,19.18177836]
[1749746443877,20.580272,158.31,158.27,19.18177836]
[1749746443878,6.31767084,158.29,158.27,19.18177836]
[1749746445202,6.31726949,158.3,158.28,19.18177836]
[1749746446087,6.31672035,158.31,158.28,19.18177836]
[1749746446407,6.31672035,158.31,158.24,19.18177836]
[1749746446408,6.31672035,158.31,158.29,19.18177836]
[1749746446612,6.31672035,158.31,158.28,19.18177836]
[1749746446788,41.2902996,158.31,158.26,19.18177836]
[1749746446995,19.18177836,158.3,158.22,88.5]
[1749746447187,22.10852124,158.31,158.22,88.5]
[1749746447382,19.18177836,158.3,158.26,19.18177836]
[1749746447584,22.10852124,158.31,158.27,19.18177836]
[1749746449695,22.10852124,158.31,158.22,88.5]
[1749746450009,41.2902996,158.31,158.27,19.18177836]
[1749746450378,6.31672035,158.31,158.28,19.18177836]
[1749746451619,6.31672035,158.31,158.22,88.5]
[1749746451823,6.31672035,158.31,158.28,19.18177836]
[1749746451987,6.31649303,158.32,158.3,19.18177836]
[1749746452318,6.31649303,158.32,158.31,19.18177836]
[1749746452492,6.31649303,158.32,158.3,19.18177836]
[1749746452900,6.31649303,158.32,158.28,88.5]
[1749746453108,19.4661015,158.31,158.28,88.5]
[1749746453485,19.18177836,158.3,158.28,88.5]
[1749746453807,6.31751847,158.29,158.28,88.5]
[1749746454506,25.49929683,158.29,158.28,88.5]
[1749746454923,44.43326883,158.29,158.28,88.5]
[1749746455099,0.28432314,158.28,158.23,6.1285]
[1749746455299,19.18177836,158.27,158.23,6.1285]
[1749746455505,19.4661015,158.28,158.23,25.31027836]
[1749746456016,6.3183168,158.27,158.23,25.31027836]
[1749746456318,6.3183168,158.27,158.24,19.18177836]
[1749746459434,6.3183168,158.27,158.23,25.31027836]
[1749746459936,6.3183168,158.27,158.24,19.18177836]
[1749746460109,1.6287,158.32,158.24,19.18177836]
[1749746460110,32.31672035,158.31,158.26,19.18177836]
[1749746460427,32.31672035,158.31,158.27,19.18177836]
[1749746461314,51.49849871,158.31,158.27,19.18177836]
[1749746463133,6.31647423,158.32,158.29,19.18177836]
[1749746463509,6.31647423,158.32,158.28,19.18177836]
[1749746463827,6.31647423,158.32,158.29,19.18177836]
[1749746464030,6.31647423,158.32,158.3,19.18177836]
[1749746465029,6.31647423,158.32,158.29,107.68177836]
[1749746468403,6.31647423,158.32,158.3,19.18177836]
[1749746469019,6.31552355,158.34,158.31,19.18177836]
[1749746469207,6.31552355,158.34,158.31,88.5]
[1749746469420,6.31552355,158.34,158.31,107.68177836]
[1749746470926,6.31512472,158.35,158.31,107.68177836]
[1749746472104,6.31512472,158.35,158.32,19.18177836]
[1749746472909,6.31512472,158.35,158.33,19.18177836]
[1749746473734,32.31392852,158.38,158.34,19.18177836]
[1749746473901,32.31392852,158.38,158.35,19.18177836]
[1749746475531,5.07757441,158.43,158.34,88.5]
[1749746475532,6.31273278,158.41,158.36,19.18177836]
[1749746475830,6.31273278,158.41,158.38,19.18177836]
[1749746476033,32.31273278,158.41,158.37,19.18177836]
[1749746478616,48.09456473,158.41,158.37,19.18177836]
[1749746479218,48.09456473,158.41,158.37,107.68177836]
[1749746479827,19.18177836,158.39,158.37,88.5]
[1749746480031,45.18177836,158.38,158.3,94.5622]
[1749746480201,19.18177836,158.35,158.3,94.5622]
[1749746480402,19.18177836,158.34,158.3,88.5]
[1749746480605,19.18177836,158.34,158.29,88.5]
[1749746480834,19.18177836,158.34,158.29,107.68177836]
[1749746481234,19.18177836,158.34,158.3,19.18177836]
[1749746481410,45.18177836,158.35,158.3,19.18177836]
[1749746481612,6.31592244,158.33,158.3,19.18177836]
[1749746482406,6.31592244,158.33,158.29,88.5]
[1749746482614,6.31592244,158.33,158.29,107.68177836]
[1749746485134,6.31592244,158.33,158.3,19.18177836]
[1749746486238,6.31552355,158.34,158.3,19.18177836]
[1749746487031,6.31552355,158.34,158.32,19.18177836]
[1749746488337,22.10154079,158.36,158.32,19.18177836]
[1749746488515,41.28331915,158.36,158.32,19.18177836]
[1749746489549,6.31472594,158.36,158.33,19.18177836]
[1749746489844,25.4965043,158.36,158.32,19.18177836]
[1749746490439,6.31472594,158.36,158.32,19.18177836]
[1749746490637,6.31472594,158.36,158.32,107.68177836]
[1749746493059,25.4965043,158.36,158.32,88.5]
[1749746493346,25.4965043,158.36,158.32,107.68177836]
[1749746495639,6.31472594,158.36,158.32,107.68177836]
[1749746495835,25.4965043,158.36,158.32,107.68177836]
[1749746497948,25.4965043,158.36,158.32,88.5]
[1749746498148,19.18177836,158.34,158.26,243.3211]
[1749746498452,19.18177836,158.34,158.27,2.74]
[1749746498632,19.18177836,158.35,158.3,19.18177836]
[1749746498953,19.18177836,158.34,158.3,19.18177836]
[1749746499134,19.18177836,158.34,158.27,114.92]
[1749746499445,19.18177836,158.33,158.27,114.92]
[1749746499631,19.18177836,158.33,158.28,19.18177836]
[1749746499836,26.0,158.34,158.27,88.5]
[1749746499837,19.18177836,158.32,158.27,88.5]
[1749746500024,19.18177836,158.29,158.27,88.5]
[1749746500226,25.49889775,158.3,158.23,91.58031633]
[1749746500436,41.29169623,158.3,158.25,19.18177836]
[1749746500629,41.29169623,158.3,158.24,2.74]
[1749746500836,41.29169623,158.3,158.25,19.18177836]
[1749746501057,41.29169623,158.3,158.23,118.00031633]
[1749746501259,41.29169623,158.3,158.25,19.18177836]
[1749746501452,19.18177836,158.29,158.24,19.18177836]
[1749746501630,41.29169623,158.3,158.23,88.5]
[1749746501830,41.29169623,158.3,158.25,19.18177836]
[1749746502030,41.29169623,158.3,158.23,88.5]
[1749746502229,41.29169623,158.3,158.25,19.18177836]
[1749746502533,19.18177836,158.26,158.23,88.5]
[1749746502736,19.18177836,158.25,158.19,88.5]
[1749746502947,19.18177836,158.25,158.2,19.61177836]
[1749746503547,19.18177836,158.25,158.2,19.18177836]
[1749746504233,6.31951466,158.24,158.2,19.18177836]
[1749746504651,6.31951466,158.24,158.21,19.18177836]
[1749746504834,6.31871603,158.26,158.23,19.18177836]
[1749746505031,6.31871603,158.26,158.24,19.18177836]
[1749746505262,6.31871603,158.26,158.23,88.5]
[1749746505442,6.31871603,158.26,158.23,107.68177836]
[1749746505769,6.31791761,158.28,158.25,19.18177836]
[1749746506068,6.31711939,158.3,158.27,19.18177836]
[1749746506240,15.79160052,158.32,158.27,19.18177836]
[1749746506241,67.28970025,158.32,158.27,107.68177836]
[1749746507359,19.18177836,158.31,158.27,88.5]
[1749746507543,19.18177836,158.31,158.27,107.68177836]
[1749746507958,19.18177836,158.3,158.27,88.5]
[1749746508640,48.10792189,158.32,158.27,88.5]
[1749746508837,19.18177836,158.3,158.27,88.5]
[1749746509040,19.18177836,158.28,158.27,88.5]
[1749746510449,25.49969597,158.28,158.27,88.5]
[1749746510860,6.31791761,158.28,158.27,88.5]
[1749746511644,6.31791761,158.28,158.25,19.18177836]
[1749746512749,6.31791761,158.28,158.23,88.5]
[1749746512750,25.49929683,158.29,158.24,19.18177836]
[1749746513147,6.31751847,158.29,158.25,19.18177836]
[1749746514262,6.31672035,158.31,158.27,19.18177836]
[1749746514650,6.31647786,158.32,158.29,19.18177836]
[1749746514850,6.31592244,158.33,158.29,19.18177836]
[1749746516269,6.31592244,158.33,158.27,88.5]
[1749746516472,6.31592244,158.33,158.29,19.18177836]
[1749746517572,41.2875069,158.33,158.28,19.18177836]
[1749746517776,19.18177836,158.31,158.27,88.5]
[1749746518147,22.39005168,158.33,158.27,88.5]
[1749746518348,19.18177836,158.3,158.27,88.5]
[1749746518658,6.31751847,158.29,158.27,88.5]
[1749746519956,25.49929683,158.29,158.27,88.5]
[1749746520170,19.18177836,158.28,158.27,88.5]
[1749746520471,19.18177836,158.28,158.24,88.5]
[1749746520647,6.3183168,158.27,158.24,88.5]
[1749746520856,25.50009516,158.27,158.24,88.5]
[1749746521471,19.18177836,158.26,158.24,88.5]
[1749746521675,19.18177836,158.25,158.22,88.5]
[1749746522045,19.18177836,158.26,158.22,88.5]
[1749746522256,21.5508764,158.25,158.22,88.5]
[1749746522463,19.18177836,158.25,158.22,88.5]
[1749746522758,6.31951466,158.24,158.22,88.5]
[1749746523173,6.31951466,158.24,158.18,26.42]
[1749746523374,6.31951466,158.24,158.2,19.18177836]
[1749746523762,19.18177836,158.25,158.2,19.18177836]
[1749746523763,25.50089368,158.25,158.2,19.18177836]
[1749746525267,25.50089368,158.25,158.18,26.42]
[1749746525601,41.29868198,158.25,158.2,19.18177836]
[1749746525886,41.29868198,158.25,158.21,19.18177836]
[1749746528088,41.29868198,158.25,158.18,88.5]
[1749746528386,19.18177836,158.24,158.19,19.18177836]
[1749746529363,6.32031348,158.22,158.19,19.18177836]
[1749746529971,6.32007845,158.23,158.2,19.18177836]
[1749746530793,6.32007845,158.23,158.19,19.18177836]
[1749746531295,25.50185681,158.23,158.19,19.18177836]
[1749746531464,25.50185681,158.23,158.19,88.5]
[1749746531465,19.18177836,158.22,158.19,88.5]
[1749746531667,19.18177836,158.2,158.15,19.18177836]
[1749746531867,22.11986357,158.23,158.15,19.18177836]
[1749746531868,19.18177836,158.19,158.15,107.68177836]
[1749746532087,19.18177836,158.19,158.15,88.5]
[1749746533566,6.32191174,158.18,158.14,107.68177836]
[1749746533895,6.32111251,158.2,158.16,19.18177836]
[1749746534093,6.32111251,158.2,158.17,19.18177836]
[1749746534299,6.32083237,158.21,158.14,88.5]
[1749746534598,32.32048377,158.22,158.18,19.18177836]
[1749746535086,19.18177836,158.23,158.16,19.18177836]
[1749746535087,6.32006435,158.23,158.16,19.18177836]
[1749746535394,6.31951466,158.24,158.2,19.18177836]
[1749746536094,6.31951466,158.24,158.21,19.18177836]
[1749746537906,6.31951466,158.24,158.2,19.18177836]
[1749746540177,6.31951466,158.24,158.21,19.18177836]
[1749746540377,6.31885019,158.26,158.23,19.18177836]
[1749746540596,6.31885019,158.26,158.24,19.18177836]
[1749746541591,6.31885019,158.26,158.23,19.18177836]
[1749746543109,25.50062855,158.26,158.21,88.5]
[1749746543489,19.18177836,158.25,158.21,107.68177836]
[1749746544111,6.31951466,158.24,158.21,107.68177836]
[1749746547012,19.18177836,158.24,158.21,88.5]
[1749746548900,6.31991404,158.23,158.21,88.5]
[1749746549605,6.31911532,158.25,158.21,107.68177836]
[1749746549994,25.50089368,158.25,158.21,88.5]
[1749746554193,19.18177836,158.24,158.21,88.5]
[1749746555216,41.29868198,158.25,158.21,88.5]
[1749746555407,41.29868198,158.25,158.21,107.68177836]
[1749746556307,41.29868198,158.25,158.21,88.5]
[1749746557492,22.11690362,158.25,158.21,107.68177836]
[1749746557691,6.31911532,158.25,158.21,107.68177836]
[1749746558419,6.31911532,158.25,158.22,19.18177836]
[1749746558627,6.31911532,158.25,158.23,19.18177836]
[1749746558800,6.31885179,158.26,158.24,19.18177836]
[1749746558993,8.25923172,158.3,158.25,19.18177836]
[1749746559199,51.08177836,158.3,158.25,19.18177836]
[1749746559392,6.31751847,158.29,158.25,19.18177836]
[1749746559802,2.36478908,158.28,158.25,19.18177836]
[1749746560005,2.36479476,158.27,158.24,107.68177836]
[1749746560204,2.36479476,158.28,158.24,107.68177836]
[1749746560407,6.31871603,158.26,158.24,107.68177836]
[1749746561128,6.31751847,158.29,158.25,19.18177836]
[1749746561422,6.31751847,158.29,158.26,19.18177836]
[1749746561594,2.3644421,158.3,158.24,88.5]
[1749746561595,6.31727235,158.3,158.27,19.18177836]
[1749746561796,6.31727235,158.3,158.27,107.68177836]
[1749746561997,8.68171445,158.3,158.27,107.68177836]
[1749746562196,6.31727235,158.3,158.27,107.68177836]
[1749746562421,8.68097442,158.31,158.27,107.68177836]
[1749746562623,27.86272701,158.31,158.27,107.68177836]
[1749746562820,2.36426635,158.3,158.27,88.5]
[1749746563340,2.36433287,158.3,158.27,88.5]
[1749746563542,41.2902996,158.31,158.27,88.5]
[1749746563727,2.36430441,158.3,158.27,88.5]
[1749746563902,2.36430474,158.3,158.27,88.5]
[1749746564104,2.36430474,158.3,158.27,107.68177836]
[1749746564312,6.31751847,158.29,158.27,107.68177836]
[1749746564923,6.31751847,158.29,158.27,88.5]
[1749746565719,6.31751847,158.29,158.27,107.68177836]
[1749746566104,6.31751847,158.29,158.27,88.5]
[1749746566624,8.68145259,158.3,158.27,88.5]
[1749746566928,8.68143958,158.3,158.27,88.5]
[1749746567115,43.65601642,158.3,158.27,88.5]
[1749746567429,41.29169623,158.3,158.27,88.5]
[1749746567826,2.36442443,158.29,158.27,88.5]
[1749746568133,2.36442477,158.29,158.27,88.5]
[1749746568426,6.31791761,158.28,158.27,88.5]
[1749746569506,6.31751847,158.29,158.27,88.5]
[1749746569807,8.68199398,158.29,158.27,88.5]
[1749746570431,8.6819813,158.29,158.27,88.5]
[1749746570728,2.36446283,158.29,158.27,88.5]
[1749746571056,21.54530194,158.29,158.27,88.5]
[1749746571233,19.18177836,158.28,158.27,88.5]
[1749746571743,21.54555453,158.28,158.27,88.5]
[1749746571911,21.54554398,158.28,158.27,88.5]
[1749746572108,19.18177836,158.28,158.27,88.5]
[1749746572311,27.86293587,158.28,158.27,88.5]
[1749746572835,8.68115751,158.28,158.27,88.5]
[1749746573208,8.68107867,158.28,158.27,88.5]
[1749746573538,27.86290775,158.28,158.27,88.5]
[1749746574007,27.86290776,158.28,158.27,88.5]
[1749746574419,27.86285739,158.28,158.27,88.5]
[1749746574906,25.49969597,158.28,158.27,88.5]
[1749746575103,27.86290812,158.28,158.27,88.5]
[1749746575807,27.86284433,158.28,158.27,88.5]
[1749746576009,6.31791761,158.28,158.27,88.5]
[1749746576934,6.31791761,158.28,158.25,107.68177836]
[1749746577346,6.31791761,158.28,158.25,88.5]
[1749746580417,6.31791761,158.28,158.25,107.68177836]
[1749746580618,6.31791761,158.28,158.26,19.18177836]
[1749746580935,6.31791761,158.28,158.25,107.68177836]
[1749746582647,25.49969597,158.28,158.25,88.5]
[1749746582826,19.18177836,158.26,158.25,88.5]
[1749746583019,19.18177836,158.26,158.21,140.41407836]
[1749746583219,19.18177836,158.25,158.21,114.05407836]
[1749746583617,19.18177836,158.26,158.21,114.05407836]
[1749746583823,6.31911532,158.25,158.21,114.05407836]
[1749746584839,25.50089368,158.25,158.21,114.05407836]
[1749746586239,19.18177836,158.23,158.21,88.5]
[1749746586456,22.11690362,158.25,158.19,88.5]
[1749746586457,19.18177836,158.22,158.19,88.5]
[1749746586818,19.18177836,158.2,158.19,88.5]
[1749746587444,19.18177836,158.2,158.15,45.54177836]
[1749746587445,19.18177836,158.2,158.14,19.18177836]
[1749746587629,19.18177836,158.19,158.15,19.18177836]
[1749746587826,6.32191174,158.18,158.15,19.18177836]
[1749746588841,19.18177836,158.2,158.15,19.18177836]
[1749746589049,6.32046788,158.22,158.19,19.18177836]
[1749746589357,6.32046788,158.22,158.16,26.36]
[1749746589358,6.32007354,158.23,158.2,19.18177836]
[1749746589533,6.32007354,158.23,158.19,19.18177836]
[1749746589717,25.5018519,158.23,158.19,19.18177836]
[1749746591147,19.18177836,158.22,158.16,114.86]
[1749746591331,19.18177836,158.22,158.18,19.18177836]
[1749746592346,25.5018519,158.23,158.18,19.18177836]
[1749746594333,19.18177836,158.22,158.18,19.18177836]
[1749746594522,19.18177836,158.22,158.18,88.5]
[1749746594952,6.3215121,158.19,158.18,88.5]
[1749746600363,6.32127116,158.2,158.18,107.68177836]
[1749746601126,22.11927281,158.24,158.18,107.68177836]
[1749746601356,19.18177836,158.22,158.18,107.68177836]
[1749746601974,22.11927281,158.24,158.18,107.68177836]
[1749746601975,19.18177836,158.23,158.19,19.18177836]
[1749746602131,6.31951466,158.24,158.19,19.18177836]
[1749746602331,6.31951466,158.24,158.22,19.18177836]
[1749746603145,6.31951466,158.24,158.21,19.18177836]
[1749746603442,6.31911532,158.25,158.21,19.18177836]
[1749746603648,6.31911532,158.25,158.22,19.18177836]
[1749746603838,19.18177836,158.26,158.23,19.18177836]
[1749746603839,6.31885934,158.26,158.23,19.18177836]
[1749746604062,6.31885934,158.26,158.24,19.18177836]
[1749746604649,6.31885934,158.26,158.24,22.10177836]
[1749746605169,6.31885934,158.26,158.24,2.92]
[1749746605466,6.3183168,158.27,158.24,2.92]
[1749746605985,25.50009516,158.27,158.24,2.92]
[1749746606792,6.3183168,158.27,158.24,2.92]
[1749746606985,6.3183168,158.27,158.24,22.10177836]
[1749746607147,19.18177836,158.3,158.25,19.18177836]
[1749746607342,6.31711939,158.3,158.27,19.18177836]
[1749746608165,6.31711939,158.3,158.26,19.18177836]
[1749746608475,27.85670033,158.3,158.27,2.92]
[1749746608653,25.49889775,158.3,158.27,2.92]
[1749746611086,6.31711939,158.3,158.27,22.10177836]
[1749746612786,6.31711939,158.3,158.27,2.92]
[1749746612959,25.49889775,158.3,158.27,2.92]
[1749746614468,19.18177836,158.28,158.27,2.92]
[1749746614770,41.29169623,158.3,158.27,2.92]
[1749746615351,41.29169623,158.3,158.26,19.18177836]
[1749746615552,41.29169623,158.3,158.21,159.48964886]
[1749746615553,6.31711939,158.3,158.27,19.18177836]
[1749746617883,6.31711939,158.3,158.26,19.18177836]
[1749746618089,25.49889775,158.3,158.26,19.18177836]
[1749746618455,41.29169623,158.3,158.26,19.18177836]
[1749746618671,19.18177836,158.29,158.25,19.18177836]
[1749746618889,19.18177836,158.28,158.24,19.18177836]
[1749746619487,22.10991787,158.3,158.24,19.18177836]
[1749746619488,19.18177836,158.29,158.24,19.18177836]
[1749746620003,6.31791761,158.28,158.25,19.18177836]
[1749746621094,6.31791761,158.28,158.25,107.68177836]
[1749746622086,6.31751847,158.29,158.25,107.68177836]
[1749746622658,25.49929683,158.29,158.25,107.68177836]
[1749746623072,6.31751847,158.29,158.25,88.5]
[1749746623272,6.31751847,158.29,158.25,107.68177836]
[1749746623785,6.31751847,158.29,158.26,19.18177836]
[1749746624196,22.10991787,158.3,158.26,19.18177836]
[1749746625201,15.79279848,158.3,158.26,19.18177836]
[1749746625497,25.49849871,158.31,158.26,19.18177836]
[1749746626292,19.18177836,158.3,158.26,19.18177836]
[1749746626587,19.18177836,158.3,158.25,88.5]
[1749746626895,19.18177836,158.3,158.26,19.18177836]
[1749746627067,19.18177836,158.3,158.26,107.68177836]
[1749746627424,19.18177836,158.29,158.26,88.5]
[1749746627699,19.18177836,158.3,158.26,88.5]
[1749746628275,41.29169623,158.3,158.26,88.5]
[1749746629486,19.18177836,158.29,158.26,88.5]
[1749746629870,26.0,158.27,158.26,88.5]
[1749746630076,45.18177836,158.27,158.26,88.5]
[1749746630476,64.11575036,158.27,158.21,88.5]
[1749746630674,19.18177836,158.24,158.21,88.5]
[1749746631618,6.31991404,158.23,158.21,88.5]
[1749746633607,6.31951466,158.24,158.21,107.68177836]
[1749746634180,6.31951466,158.24,158.22,19.18177836]
[1749746634709,6.31951466,158.24,158.21,88.5]
[1749746634900,19.18177836,158.23,158.21,88.5]
[1749746635098,6.31951466,158.24,158.21,88.5]
[1749746635331,25.50063321,158.26,158.22,19.18177836]
[1749746635537,6.31885485,158.26,158.22,19.18177836]
[1749746636014,6.31791761,158.28,158.24,19.18177836]
[1749746636182,6.31791761,158.28,158.25,19.18177836]
[1749746636379,6.31791761,158.28,158.24,107.68177836]
[1749746636603,25.49969597,158.28,158.24,107.68177836]
[1749746637191,25.49969597,158.28,158.24,88.5]
[1749746640990,25.49969597,158.28,158.24,107.68177836]
[1749746641292,25.49969597,158.28,158.24,88.5]
[1749746641812,25.49969597,158.28,158.24,107.68177836]
[1749746642187,25.49969597,158.28,158.24,88.5]
[1749746643039,19.18177836,158.27,158.24,88.5]
[1749746644420,6.31871603,158.26,158.24,88.5]
[1749746644617,19.18177836,158.25,158.24,88.5]
[1749746646186,25.50089368,158.25,158.24,88.5]
[1749746646913,6.3183168,158.27,158.24,107.68177836]
[1749746647745,25.50009516,158.27,158.24,88.5]
[1749746647904,6.3183168,158.27,158.24,88.5]
[1749746648311,6.3183168,158.27,158.24,107.68177836]
[1749746650350,6.31791761,158.28,158.24,107.68177836]
[1749746650736,6.31791761,158.28,158.24,19.18177836]
[1749746652627,6.31791761,158.28,158.25,19.18177836]
[1749746652828,6.31791761,158.28,158.24,19.18177836]
[1749746653755,25.49969597,158.28,158.24,19.18177836]
[1749746654058,25.49969597,158.28,158.23,107.68177836]
[1749746654236,25.49969597,158.28,158.24,0.16]
[1749746655040,6.31791761,158.28,158.24,19.18177836]
[1749746655419,6.31791761,158.28,158.25,19.18177836]
[1749746656450,6.31765882,158.29,158.25,19.18177836]
[1749746656659,6.31728874,158.3,158.27,19.18177836]
[1749746656859,45.18177836,158.31,158.24,26.3]
[1749746656860,32.31688345,158.31,158.28,19.18177836]
[1749746657027,6.31688345,158.31,158.28,107.68177836]
[1749746657225,24.51296452,158.36,158.28,107.68177836]
[1749746657226,8.6776448,158.32,158.29,19.18177836]
[1749746657548,6.31644923,158.32,158.29,88.5]
[1749746657721,8.6775572,158.32,158.29,88.5]
[1749746658156,8.67753613,158.32,158.29,88.5]
[1749746658336,8.67751524,158.32,158.29,88.5]
[1749746658966,8.67751489,158.32,158.29,88.5]
[1749746659263,11.03873089,158.33,158.31,19.18177836]
[1749746659426,6.31606537,158.33,158.29,88.5]
[1749746659621,6.31606537,158.33,158.31,19.18177836]
[1749746660332,6.31552355,158.34,158.31,19.18177836]
[1749746660927,6.31552355,158.34,158.3,19.18177836]
[1749746662632,6.31552355,158.34,158.3,107.68177836]
[1749746664054,25.49730191,158.34,158.3,107.68177836]
[1749746664233,6.31552355,158.34,158.3,107.68177836]
[1749746664948,6.31552355,158.34,158.31,19.18177836]
[1749746665551,6.91191279,158.38,158.31,19.18177836]
[1749746665552,6.31527777,158.35,158.32,19.18177836]
[1749746665957,6.31527777,158.35,158.31,107.68177836]
[1749746666170,19.18177836,158.34,158.31,88.5]
[1749746666371,25.49705613,158.35,158.31,107.68177836]